fUST/lending_fUST_20240214
["ID","MTS","AMOUNT","RATE_DAILY","PERIOD"]
[313967846,1707883832095,-179.40988679,0.00025793,2]
[313967848,1707883832104,-154.79876161,0.00025793,2]
[313967850,1707883832114,-154.79876161,0.00025794,2]
[313967852,1707883832123,-1041.35073906,0.00025795,2]
[313967854,1707883832133,-114.7102176,0.00025795,2]
[313967856,1707883832145,-7876.26306278,0.00025795,2]
[313967858,1707883832154,-821.70211693,0.00025796,2]
[313967860,1707883832162,-20954.48682871,0.00025799,2]
[313967862,1707883832172,-621.41618893,0.00025833,2]
[313967864,1707883832181,-523.50861206,0.00026298,2]
[313967866,1707883832191,-620.07080945,0.00027125,2]
[313967868,1707883832200,-200.0,0.00028395,15]
[313967870,1707883832210,-2044.90909049,0.00028424,2]
[313967872,1707883832219,-5914.7247732,0.00028424,7]
[313967874,1707883832228,-200.0,0.00028424,2]
[313967876,1707883832237,-12165.8534414,0.00028428,2]
[313967878,1707883832247,-980.49050811,0.0002843,2]
[313967890,1707883832353,-975.77632398,0.00028475,2]
[313967893,1707883832363,-179.92621278,0.00028475,2]
[313967894,1707883832372,-620.00354047,0.00028481,2]
[313967897,1707883832382,-3859.63,0.00028489,3]
[313967899,1707883832392,-65.14707152,0.0002849,3]
[313968022,1707883839330,-1782.06817605,0.0002849,3]
[313968045,1707883844775,-2755.76534806,0.0002849,3]
[313968046,1707883844788,-2431.24940437,0.0002849,3]
[313968047,1707883844798,-3285.3899207,0.00028499,2]
[313968049,1707883844807,-475.148551,0.00028499,2]
[313968050,1707883844816,-475.148551,0.00028499,2]
[313968051,1707883844826,-16290.54576822,0.000285,2]
[313968052,1707883844835,-475.148551,0.000285,2]
[313968053,1707883844844,-475.148551,0.000285,2]
[313968054,1707883844854,-153.0,0.00029589,2]
[313968055,1707883844863,-153.0,0.00029589,2]
[313968056,1707883844872,-153.0,0.00029589,2]
[313968057,1707883844881,-153.0,0.00029589,2]
[313968058,1707883844890,-154.8143359,0.00029589,2]
[313968059,1707883844899,-153.0,0.00029589,2]
[313968060,1707883844909,-153.0,0.00029589,2]
[313968061,1707883844919,-153.0,0.00029647,2]
[313968062,1707883844929,-153.0,0.00029647,2]
[313968063,1707883844938,-153.0,0.000298,2]
[313968064,1707883844947,-316.5371774,0.00029941,2]
[313968065,1707883844956,-289.0,0.0003,10]
[313968066,1707883844965,-153.0,0.00030055,2]
[313968067,1707883844974,-153.0,0.00030055,2]
[313968068,1707883844983,-153.0,0.00030055,2]
[313968070,1707883844993,-400.3274962,0.00030055,2]
[313968072,1707883845002,-200.1809906,0.00030055,2]
[313968074,1707883845012,-200.1809906,0.00030055,2]
[313968075,1707883845023,-200.1809906,0.00030055,2]
[313968076,1707883845033,-200.1809906,0.00030078,2]
[313968077,1707883845043,-200.1809906,0.00030078,2]
[313968078,1707883845052,-331.5411706,0.00030466,2]
[313968079,1707883845061,-475.148551,0.00030877,2]
[313968080,1707883845070,-475.148551,0.00030877,2]
[313968081,1707883845079,-172.846519,0.00030996,2]
[313968082,1707883845088,-889.0,0.00031,2]
[313968083,1707883845099,-153.3708813,0.00031096,2]
[313968084,1707883845107,-154.1769514,0.00031096,2]
[313968085,1707883845116,-153.0,0.00031096,2]
[313968086,1707883845125,-154.1257937,0.00031096,2]
[313968087,1707883845135,-281.4206757,0.00031096,2]
[313968088,1707883845144,-153.0,0.00031096,2]
[313968089,1707883845153,-153.0,0.00031096,2]
[313968090,1707883845163,-153.0,0.00031096,2]
[313968091,1707883845173,-200.1465056,0.00031096,2]
[313968092,1707883845183,-153.0,0.00031096,2]
[313968093,1707883845192,-153.0,0.00031096,2]
[313968094,1707883845201,-153.0,0.00031096,2]
[313968095,1707883845211,-153.0,0.00031096,2]
[313968096,1707883845221,-153.0,0.00031096,2]
[313968097,1707883845230,-306.0,0.00031096,2]
[313968098,1707883845238,-307.3899405,0.00031096,2]
[313968099,1707883845247,-200.1465056,0.00031096,2]
[313968100,1707883845257,-153.0,0.00031096,2]
[313968101,1707883845266,-355.0927635,0.00031096,2]
[313968102,1707883845276,-200.1465056,0.00031096,2]
[313968103,1707883845285,-200.1465056,0.00031096,2]
[313968104,1707883845295,-200.1465056,0.00031096,2]
[313968105,1707883845304,-203.1811862,0.00031096,2]
[313968106,1707883845313,-400.2930112,0.00031096,2]
[313968107,1707883845323,-306.0,0.00031096,2]
[313968108,1707883845333,-365.433075,0.00031096,2]
[313968109,1707883845342,-399.0650533,0.00031096,2]
[313968110,1707883845353,-399.8887816,0.00031096,2]
[313968111,1707883845362,-199.2537432,0.00031096,2]
[313968112,1707883845371,-475.148551,0.00031096,2]
[313968113,1707883845381,-475.148551,0.00031096,2]
[313968114,1707883845391,-523.50861206,0.00031298,2]
[313968115,1707883845401,-475.148551,0.00031918,2]
[313968116,1707883845410,-475.148551,0.00031918,2]
[313968117,1707883845420,-5861.86,0.0003199,3]
[313968118,1707883845430,-154.79876161,0.00032,30]
[313968119,1707883845439,-7748.98940977,0.00032,15]
[313968120,1707883845452,-503.01188397,0.00032,15]
[313968121,1707883845463,-740.65520571,0.00032,15]
[313968122,1707883845478,-456.56140011,0.00032,15]
[313968123,1707883845490,-416.75595341,0.00032,15]
[313968124,1707883845502,-1627.75,0.00032,15]
[313968125,1707883845515,-9167.60063458,0.00032,15]
[313968138,1707884301788,20000.0,3.8e-05,120]
[313968142,1707884968170,-294.87723359,0.00024948,2]
[313968143,1707884968192,-258.12096947,0.00024949,2]
[313968144,1707884968214,-500.0,0.0002495,2]
[313968145,1707884968235,-154.79876161,0.0002495,2]
[313968146,1707884968254,-1203.17701718,0.0002495,2]
[313968147,1707884968275,-154.79876161,0.0002495,2]
[313968148,1707884968296,-154.79876161,0.00024951,2]
[313968149,1707884968315,-154.79876161,0.00024951,2]
[313968150,1707884968335,-641.14805949,0.00024952,2]
[313968151,1707884968357,-907.30024907,0.00024952,2]
[313968152,1707884968377,-178.8087918,0.00024952,2]
[313968153,1707884968397,-2723.62693408,0.00024953,2]
[313968154,1707884968420,-3925.59082441,0.00025037,2]
[313968226,1707885032342,-498.06926913,0.00025036,2]
[313968242,1707885038424,-543.28146993,0.00025036,2]
[313968243,1707885038434,-885.33434081,0.00025037,2]
[313968244,1707885038446,-1174.07483478,0.00025037,2]
[313968245,1707885038455,-7798.48448595,0.00025037,2]
[313968246,1707885038464,-2718.10880283,0.00025037,2]
[313968247,1707885038474,-200.0,0.00025037,2]
[313968248,1707885038483,-200.0,0.00027467,15]
[313968249,1707885038493,-38134.93138935,0.00028549,2]
[313968250,1707885038501,-3727.38403145,0.00028555,2]
[313968251,1707885038511,-3827.57173545,0.00028562,2]
[313968252,1707885038520,-168.313164,0.00029345,2]
[313968253,1707885038529,-174.50287069,0.000299,2]
[313968254,1707885038538,-245.0436255,0.0003189,2]
[313968255,1707885038547,-209.38900801,0.00031897,2]
[313968256,1707885038557,-2355.75,0.00031972,3]
[313968257,1707885038567,-153.0,0.00031978,2]
[313968258,1707885038577,-3743.55,0.00031982,3]
[313968259,1707885038589,-4492.26,0.00031984,3]
[313968260,1707885038598,-1205.7149264,0.00031992,4]
[313968261,1707885038607,-390.22070821,0.00031992,4]
[313968262,1707885038618,-155.46141205,0.00031992,4]
[313968263,1707885038627,-295.09094559,0.00031992,4]
[313968264,1707885038638,-644.55711512,0.00031992,4]
[313968265,1707885038648,-495.85027957,0.00031992,4]
[313968266,1707885038658,-156.83098545,0.00031992,4]
[313968267,1707885038667,-197.27222691,0.00031992,4]
[313968268,1707885038676,-500.0,0.00031992,4]
[313968269,1707885038686,-485.0693949,0.00031992,4]
[313968270,1707885038801,-178.35750885,0.00031992,4]
[313968271,1707885038812,-155.12830235,0.00031993,4]
[313968272,1707885038822,-1776.80378515,0.00031993,120]
[313968273,1707885038831,-500.0,0.00031993,7]
[313968274,1707885038841,-500.0,0.00031993,7]
[313968275,1707885038850,-409.32167727,0.00031993,7]
[313968276,1707885038860,-500.0,0.00031993,7]
[313968277,1707885038869,-500.0,0.00031993,7]
[313968278,1707885038879,-500.0,0.00031993,7]
[313968279,1707885038889,-1070.29448924,0.00031993,7]
[313968280,1707885038899,-500.0,0.00031993,7]
[313968281,1707885038909,-500.0,0.00031993,7]
[313968282,1707885038918,-211.11559252,0.00031993,7]
[313968283,1707885038927,-500.0,0.00031993,7]
[313968284,1707885038936,-500.0,0.00031993,7]
[313968285,1707885038946,-1070.29448924,0.00031993,7]
[313968286,1707885038955,-500.0,0.00031993,7]
[313968287,1707885038968,-628.66885219,0.00031993,7]
[313968288,1707885038978,-500.0,0.00031993,7]
[313968289,1707885038987,-500.0,0.00031993,7]
[313968290,1707885038996,-500.0,0.00031993,7]
[313968291,1707885039005,-500.0,0.00031993,7]
[313968292,1707885039015,-500.0,0.00031993,7]
[313968293,1707885039024,-1070.29448924,0.00031993,7]
[313968294,1707885039035,-500.0,0.00031993,7]
[313968295,1707885039045,-500.0,0.00031993,7]
[313968296,1707885039057,-500.0,0.00031993,7]
[313968297,1707885039066,-1070.29448924,0.00031993,7]
[313968298,1707885039077,-500.0,0.00031993,7]
[313968299,1707885039087,-500.0,0.00031993,7]
[313968300,1707885039098,-500.0,0.00031993,7]
[313968301,1707885039107,-1070.29448924,0.00031993,7]
[313968302,1707885039117,-500.0,0.00031993,7]
[313968303,1707885039127,-500.0,0.00031993,7]
[313968304,1707885039136,-194.20655515,0.00031993,7]
[313968305,1707885039146,-500.0,0.00031993,7]
[313968306,1707885039157,-1070.29448924,0.00031993,7]
[313968307,1707885039166,-500.0,0.00031993,7]
[313968308,1707885039176,-500.0,0.00031993,7]
[313968309,1707885039188,-500.0,0.00031993,7]
[313968310,1707885039198,-500.0,0.00031993,7]
[313968311,1707885039207,-1070.29448924,0.00031993,7]
[313968312,1707885039216,-260.52741318,0.00031993,7]
[313968313,1707885039226,-500.0,0.00031993,7]
[313968314,1707885039236,-500.0,0.00031993,7]
[313968315,1707885039248,-1070.29448924,0.00031993,7]
[313968316,1707885039258,-500.0,0.00031993,7]
[313968317,1707885039268,-500.0,0.00031993,7]
[313968318,1707885039278,-500.0,0.00031993,7]
[313968319,1707885039288,-1070.29448924,0.00031993,7]
[313968320,1707885039298,-500.0,0.00031993,7]
[313968321,1707885039308,-500.0,0.00031993,7]
[313968322,1707885039319,-1070.29448924,0.00031993,7]
[313968323,1707885039330,-500.0,0.00031993,7]
[313968324,1707885039339,-500.0,0.00031993,7]
[313968325,1707885039350,-285.21421836,0.00031993,7]
[313968326,1707885039360,-1070.29448924,0.00031993,7]
[313968327,1707885039370,-500.0,0.00031993,7]
[313968328,1707885039379,-245.85883184,0.00031993,7]
[313968329,1707885039389,-1070.29448924,0.00031993,7]
[313968330,1707885039398,-500.0,0.00031993,7]
[313968331,1707885039408,-1070.29448924,0.00031993,7]
[313968332,1707885039417,-500.0,0.00031993,7]
[313968333,1707885039427,-1070.29448924,0.00031993,7]
[313968334,1707885039436,-1070.29448924,0.00031993,7]
[313968335,1707885039446,-500.0,0.00031993,7]
[313968336,1707885039456,-500.0,0.00031993,7]
[313968337,1707885039465,-1070.29448924,0.00031993,7]
[313968338,1707885039474,-500.0,0.00031993,7]
[313968339,1707885039483,-500.0,0.00031993,7]
[313968340,1707885039492,-474.27873064,0.00031993,7]
[313968341,1707885039502,-1070.29448924,0.00031993,7]
[313968342,1707885039511,-500.0,0.00031993,7]
[313968343,1707885039521,-1070.29448924,0.00031993,7]
[313968344,1707885039530,-1070.29448924,0.00031993,7]
[313968345,1707885039540,-500.0,0.00031993,7]
[313968346,1707885039549,-1070.29448924,0.00031993,7]
[313968347,1707885039558,-1070.29448924,0.00031993,7]
[313968348,1707885039568,-500.0,0.00031993,7]
[313968349,1707885039577,-1070.29448924,0.00031993,7]
[313968350,1707885039586,-500.0,0.00031993,7]
[313968351,1707885039595,-1070.29448924,0.00031993,7]
[313968352,1707885039604,-1070.29448924,0.00031993,7]
[313968353,1707885039613,-1070.29448924,0.00031993,7]
[313968354,1707885039623,-1070.29448924,0.00031993,7]
[313968355,1707885039632,-1070.29448924,0.00031993,7]
[313968356,1707885039641,-1070.29448924,0.00031993,7]
[313968357,1707885039651,-1070.29448924,0.00031993,7]
[313968358,1707885039660,-1070.29448924,0.00031993,7]
[313968359,1707885039670,-1070.29448924,0.00031993,7]
[313968360,1707885039679,-1070.29448924,0.00031993,7]
[313968361,1707885039688,-1070.29448924,0.00031993,7]
[313968362,1707885039697,-1070.29448924,0.00031993,7]
[313968363,1707885039707,-1070.29448924,0.00031993,7]
[313968364,1707885039716,-1070.29448924,0.00031993,7]
[313968365,1707885039725,-1070.29448924,0.00031993,7]
[313968366,1707885039734,-1070.29448924,0.00031993,7]
[313968367,1707885039744,-1070.29448924,0.00031993,7]
[313968368,1707885039753,-1070.29448924,0.00031993,7]
[313968369,1707885039762,-1070.29448924,0.00031993,7]
[313968370,1707885039772,-1070.29448924,0.00031993,7]
[313968371,1707885039781,-1070.29448924,0.00031993,7]
[313968372,1707885039791,-1070.29448924,0.00031993,7]
[313968373,1707885039800,-1070.29448924,0.00031993,7]
[313968374,1707885039810,-500.0,0.00031993,7]
[313968375,1707885039820,-500.0,0.00031993,7]
[313968376,1707885039834,-1070.29448924,0.00031993,7]
[313968377,1707885039843,-1070.29448924,0.00031993,7]
[313968378,1707885039853,-1070.29448924,0.00031993,7]
[313968379,1707885039862,-500.0,0.00031993,7]
[313968380,1707885039871,-1070.29448924,0.00031993,7]
[313968381,1707885039881,-1070.29448924,0.00031993,7]
[313968382,1707885039890,-1070.29448924,0.00031993,7]
[313968383,1707885039900,-1070.29448924,0.00031993,7]
[313968384,1707885039909,-1070.29448924,0.00031993,7]
[313968385,1707885039918,-1070.29448924,0.00031993,7]
[313968386,1707885039927,-1070.29448924,0.00031993,7]
[313968387,1707885039936,-1070.29448924,0.00031993,7]
[313968388,1707885039946,-1070.29448924,0.00031993,7]
[313968389,1707885039955,-1070.29448924,0.00031993,7]
[313968390,1707885039964,-1070.29448924,0.00031993,7]
[313968391,1707885039979,-1070.29448924,0.00031993,7]
[313968392,1707885039988,-1070.29448924,0.00031993,7]
[313968393,1707885039997,-1070.29448924,0.00031993,7]
[313968394,1707885040006,-1070.29448924,0.00031993,7]
[313968395,1707885040018,-1070.29448924,0.00031993,7]
[313968396,1707885040027,-1070.29448924,0.00031993,7]
[313968397,1707885040036,-1070.29448924,0.00031993,7]
[313968398,1707885040047,-1070.29448924,0.00031993,7]
[313968399,1707885040056,-1070.29448924,0.00031993,7]
[313968400,1707885040066,-1070.29448924,0.00031993,7]
[313968401,1707885040075,-1070.29448924,0.00031993,7]
[313968402,1707885040084,-1070.29448924,0.00031993,7]
[313968403,1707885040093,-1070.29448924,0.00031993,7]
[313968404,1707885040102,-156.2061441,0.00031994,4]
[313968405,1707885040112,-334.050558,0.00031995,2]
[313968406,1707885040122,-334.050558,0.00031995,2]
[313968407,1707885040130,-334.050558,0.00031995,2]
[313968408,1707885040139,-334.050558,0.00031995,2]
[313968409,1707885040150,-334.050558,0.00031995,2]
[313968410,1707885040160,-334.050558,0.00031995,2]
[313968411,1707885040169,-334.050558,0.00031995,2]
[313968412,1707885040178,-334.050558,0.00031995,2]
[313968413,1707885040187,-334.050558,0.00031995,2]
[313968414,1707885040198,-334.050558,0.00031995,2]
[313968415,1707885040208,-334.050558,0.00031995,2]
[313968416,1707885040217,-334.050558,0.00031995,2]
[313968417,1707885040227,-334.050558,0.00031995,2]
[313968418,1707885040236,-334.050558,0.00031995,2]
[313968419,1707885040247,-334.050558,0.00031995,2]
[313968420,1707885040256,-334.050558,0.00031995,2]
[313968421,1707885040266,-334.050558,0.00031995,2]
[313968422,1707885040276,-334.050558,0.00031995,2]
[313968423,1707885040286,-334.050558,0.00031995,2]
[313968424,1707885040295,-334.0505507,0.00031995,2]
[313968425,1707885040306,-567.27634985,0.00031998,4]
[313968426,1707885040314,-155.99721397,0.00031999,4]
[313968427,1707885040324,-250.0,0.00031999,2]
[313968428,1707885040333,-30460.72803411,0.00032,15]
[313968429,1707885040343,-168.45844075,0.00032,30]
[313968430,1707885040356,-180.12411126,0.00032,4]
[313968431,1707885040366,-88808.18780003,0.00032,14]
[313968432,1707885040375,-150.0,0.00032,10]
[313968433,1707885040384,-3206.975475,0.00032,2]
[313968434,1707885040393,-153.0,0.00032,2]
[313968435,1707885040403,-203.2809045,0.00032278,2]
[313968436,1707885040411,-158.8308104,0.00032658,2]
[313968437,1707885040421,-153.0,0.00032658,2]
[313968438,1707885040432,-306.0,0.00032658,2]
[313968439,1707885040441,-153.0,0.00032658,2]
[313968441,1707885040451,-153.0,0.00032658,2]
[313968442,1707885040462,-200.1465056,0.00032658,2]
[313968443,1707885040472,-500.0,0.00032684,2]
[313968444,1707885040481,-209.38900797,0.00032748,2]
[313968445,1707885040491,-512.0,0.00033,2]
[313968446,1707885040501,-580.56425591,0.00033039,30]
[313968447,1707885040511,-185.31193837,0.00033039,4]
[313968448,1707885040520,-512.0,0.00033151,2]
[313968449,1707885040531,-750.0,0.00033369,2]
[313968450,1707885040540,-300.0,0.00033384,2]
[313968451,1707885040550,-13385.92215405,0.00033423,4]
[313968452,1707885040559,-512.0,0.00033425,2]
[313968453,1707885040568,-153.0,0.00033479,2]
[313968454,1707885040578,-209.38900797,0.00033599,2]
[313968455,1707885040587,-512.0,0.00033699,2]
[313968456,1707885040596,-512.0,0.00033973,2]
[313968457,1707885040605,-1000.0,0.00034054,2]
[313968458,1707885040615,-512.0,0.00034247,2]
[313968459,1707885040624,-153.0,0.00034301,2]
[313968460,1707885040633,-209.38900797,0.0003445,2]
[313968461,1707885040642,-512.0,0.00034521,2]
[313968462,1707885040652,-645.167675,0.00034739,2]
[313968463,1707885040661,-300.0,0.00034776,2]
[313968464,1707885040673,-335.92681022,0.000348,2]
[313968465,1707885040682,-59018.57276333,0.000349,2]
[313968466,1707885040692,-200.0,0.000349,4]
[313968467,1707885040701,-174.50287069,0.000349,2]
[313968468,1707885040711,-1036.24432059,0.00034918,10]
[313968469,1707885040720,-1533.28604909,0.00035,4]
[313968470,1707885040731,-500.46850006,0.00035,7]
[313968471,1707885040741,-3934.48218232,0.00035,2]
[313968472,1707885040750,-10190.24582438,0.00035,2]
[313968473,1707885040759,-155.74084546,0.00035,2]
[313968474,1707885040768,-8189.8295,0.00035075,7]
[313968475,1707885040778,-335.92681022,0.00035224,2]
[313968476,1707885040788,-209.38900797,0.00035301,2]
[313968477,1707885040797,-5644.13743472,0.00035401,4]
[313968478,1707885040806,-629.54937357,0.00035401,4]
[313968479,1707885040816,-309.71957478,0.00035401,2]
[313968480,1707885040825,-2534.170914,0.00035401,4]
[313968481,1707885040909,-500.0,0.00035616,2]
[313968482,1707885040918,-335.92681022,0.00035648,2]
[313968483,1707885040927,-153.0,0.00035671,2]
[313968484,1707885040936,-153.0,0.00035671,2]
[313968485,1707885040945,-153.0,0.00035671,2]
[313968486,1707885040954,-153.0,0.00035671,2]
[313968487,1707885040964,-153.0,0.00035671,2]
[313968488,1707885040977,-512.0,0.00035901,2]
[313968489,1707885040987,-1476.41946913,0.0003598,14]
[313968490,1707885040995,-2720.43780849,0.00035998,5]
[313968491,1707885041005,-361.29895884,0.00035999,4]
[313968492,1707885041014,-500.0,0.00035999,15]
[313968493,1707885041023,-500.0,0.00035999,15]
[313968494,1707885041033,-542.33022661,0.00035999,15]
[313968495,1707885041042,-205.70218061,0.00035999,15]
[313968496,1707885041052,-165.33382685,0.00035999,15]
[313968497,1707885041061,-500.0,0.00035999,15]
[313968498,1707885041071,-500.0,0.00035999,15]
[313968499,1707885041080,-608.42662531,0.00035999,15]
[313968500,1707885041088,-500.0,0.00035999,15]
[313968501,1707885041098,-342.83416303,0.00035999,15]
[313968502,1707885041107,-265.36653954,0.00035999,15]
[313968503,1707885041116,-600.0,0.00035999,15]
[313968504,1707885041125,-216.50374679,0.00035999,15]
[313968505,1707885041134,-300.0,0.00035999,15]
[313968506,1707885041145,-271.61304706,0.00035999,15]
[313968507,1707885041154,-160.31105465,0.00035999,15]
[313968508,1707885041163,-20000.0,0.00036,30]
[313968509,1707885041173,-307298.0,0.00036,30]
[313968510,1707885041182,-757.0,0.00036,2]
[313968511,1707885041190,-335.92681022,0.00036072,2]
[313968512,1707885041200,-311.576294,0.00036167,3]
[313968513,1707885041209,-50000.0,0.00036185,7]
[313968514,1707885041218,-528.0,0.00036247,2]
[313968515,1707885041227,-9818.77538836,0.00036449,5]
[313968516,1707885041236,-335.92681022,0.00036496,2]
[313968517,1707885041246,-11308.32529761,0.0003651,14]
[313968518,1707885041255,-152.64411011,0.00036524,2]
[313968519,1707885041264,-188.40782124,0.00036528,2]
[313968520,1707885041273,-300.0,0.0003659,2]
[313968521,1707885041282,-1000.0,0.0003659,2]
[313968522,1707885041290,-1000.0,0.00036597,2]
[313968523,1707885041299,-1000.0,0.00036599,2]
[313968524,1707885041308,-166.87068714,0.00036612,3]
[313968525,1707885041317,-1684.888524,0.0003664,8]
[313968526,1707885041326,-1000.0,0.0003666,8]
[313968527,1707885041334,-1000.0,0.0003668,8]
[313968528,1707885041344,-999.0,0.00036682,35]
[313968529,1707885041353,-226.8,0.00036682,35]
[313968530,1707885041362,-157.67,0.00036692,35]
[313968531,1707885041370,-999.0,0.00036692,35]
[313968532,1707885041379,-150.5,0.00036692,35]
[313968533,1707885041388,-1000.0,0.000367,8]
[313968534,1707885041398,-150.5,0.00036702,35]
[313968535,1707885041407,-999.0,0.00036702,35]
[313968536,1707885041416,-215.32,0.00036702,35]
[313968537,1707885041426,-150.5,0.00036702,35]
[313968538,1707885041435,-150.5,0.00036702,35]
[313968539,1707885041444,-4144.65191087,0.00036704,2]
[313968540,1707885041453,-154.79876161,0.0003671,4]
[313968541,1707885041462,-951.84566391,0.0003671,4]
[313968542,1707885041471,-165.01186805,0.0003671,4]
[313968544,1707885041481,-344.48416065,0.0003671,4]
[313968546,1707885041489,-3845.18051913,0.0003671,4]
[313968547,1707885041499,-539.27911788,0.0003671,4]
[313968548,1707885041507,-524.18780213,0.0003671,4]
[313968549,1707885041516,-592.47823674,0.0003671,4]
[313968550,1707885041525,-212.79441474,0.0003671,4]
[313968551,1707885041534,-325.60768651,0.0003671,4]
[313968552,1707885041543,-155.01610044,0.0003671,4]
[313968553,1707885041552,-684.19119128,0.0003671,4]
[313968554,1707885041561,-155.14993564,0.0003671,4]
[313968555,1707885041570,-155.27926851,0.0003671,4]
[313968556,1707885041580,-156.33567726,0.0003671,4]
[313968557,1707885041589,-19988.36590497,0.0003671,4]
[313968558,1707885041599,-359.22534547,0.0003671,4]
[313968559,1707885041609,-448.46522441,0.0003671,4]
[313968560,1707885041619,-802.53448911,0.0003671,4]
[313968561,1707885041629,-508.56382935,0.0003671,2]
[313968562,1707885041640,-296.77335423,0.0003671,4]
[313968563,1707885041649,-155.80751254,0.0003671,4]
[313968564,1707885041659,-486.10972667,0.0003671,4]
[313968565,1707885041668,-1470.67713,0.0003671,4]
[313968566,1707885041677,-155.67099601,0.0003671,4]
[313968567,1707885041687,-159.25113627,0.0003671,4]
[313968568,1707885041696,-155.84498601,0.0003671,4]
[313968569,1707885041705,-299.9125236,0.0003671,4]
[313968570,1707885041715,-205.29235628,0.0003671,4]
[313968571,1707885041724,-200.0,0.0003671,4]
[313968572,1707885041733,-155.558525,0.0003671,4]
[313968573,1707885041742,-304.35549789,0.0003671,4]
[313968574,1707885041752,-11054.27973451,0.0003671,4]
[313968575,1707885041761,-175.73708741,0.0003671,4]
[313968576,1707885041770,-158.31514178,0.0003671,90]
[313968577,1707885041780,-260.1705678,0.0003671,4]
[313968578,1707885041789,-283.98475147,0.0003671,2]
[313968579,1707885041799,-156.73386983,0.0003671,4]
[313968580,1707885041808,-161.86810295,0.0003671,4]
[313968581,1707885041819,-217.07185574,0.0003671,4]
[313968582,1707885041829,-155.35000927,0.0003671,4]
[313968583,1707885041838,-156.54091477,0.0003671,4]
[313968584,1707885041848,-157.24183304,0.0003671,4]
[313968585,1707885041858,-1059.45006173,0.00036712,2]
[313968586,1707885041867,-155.36736195,0.00036712,6]
[313968587,1707885041877,-402.84778058,0.00036712,14]
[313968588,1707885041886,-550.4041894,0.00036712,14]
[313968589,1707885041896,-500.0,0.00036712,7]
[313968590,1707885041906,-498.29576322,0.00036712,7]
[313968591,1707885041915,-502.13133852,0.00036712,14]
[313968592,1707885041924,-228.38843599,0.00036712,14]
[313968593,1707885041935,-500.0,0.00036712,14]
[313968594,1707885041945,-500.0,0.00036712,14]
[313968595,1707885041955,-507.07466957,0.00036712,14]
[313968596,1707885041968,-500.0,0.00036712,14]
[313968597,1707885041978,-500.0,0.00036712,14]
[313968598,1707885041988,-500.0,0.00036712,14]
[313968599,1707885041999,-503.71951919,0.00036712,14]
[313968600,1707885042010,-500.0,0.00036712,14]
[313968601,1707885042019,-500.0,0.00036712,14]
[313968602,1707885042028,-361.48710857,0.00036712,14]
[313968603,1707885042038,-500.0,0.00036712,14]
[313968604,1707885042048,-500.32843351,0.00036712,14]
[313968605,1707885042059,-500.0,0.00036712,14]
[313968606,1707885042070,-371.94855206,0.00036712,14]
[313968607,1707885042080,-223.68510231,0.00036712,14]
[313968608,1707885042091,-500.0,0.00036712,14]
[313968609,1707885042101,-500.0,0.00036712,14]
[313968610,1707885042111,-500.0,0.00036712,14]
[313968611,1707885042121,-501.48159519,0.00036712,14]
[313968612,1707885042132,-500.0,0.00036712,14]
[313968613,1707885042142,-500.0,0.00036712,14]
[313968614,1707885042152,-187.28618666,0.00036712,14]
[313968615,1707885042161,-506.98008214,0.00036712,14]
[313968616,1707885042171,-464.77806787,0.00036712,14]
[313968617,1707885042181,-506.64793472,0.00036712,14]
[313968618,1707885042193,-580.85388936,0.00036712,14]
[313968619,1707885042203,-526.49558601,0.00036712,14]
[313968620,1707885042212,-197.26428895,0.00036712,14]
[313968621,1707885042222,-204.7882619,0.00036712,14]
[313968622,1707885042233,-504.9271955,0.00036712,14]
[313968623,1707885042244,-502.88262144,0.00036712,14]
[313968624,1707885042253,-500.0,0.00036712,14]
[313968625,1707885042263,-500.0,0.00036712,14]
[313968626,1707885042272,-500.0,0.00036712,14]
[313968627,1707885042283,-500.0,0.00036712,14]
[313968628,1707885042293,-500.0,0.00036712,14]
[313968629,1707885042302,-506.31167044,0.00036712,14]